lending/lending_fUSD_20250808
["ID","MTS","AMOUNT","RATE_DAILY","PERIOD"]
[377909913,1754613065956,-1312.79,0.00019726,2]
[377909914,1754613065966,-400.0,0.00019726,2]
[377909915,1754613065976,-446.5,0.00019726,2]
[377909916,1754613065986,-1460.09,0.00019726,2]
[377909917,1754613065996,-400.0,0.00019726,2]
[377909918,1754613066007,-400.0,0.00019726,2]
[377909919,1754613066017,-436.39,0.00019726,2]
[377909920,1754613066379,-273.92841445,0.00019726,2]
[377909921,1754613066391,-806.42,0.00019726,2]
[377909922,1754613066402,-998.91,0.00019726,2]
[377909923,1754613066412,-680.12,0.00019726,2]
[377909924,1754613066423,-783.24,0.00019726,2]
[377909925,1754613066433,-400.0,0.00019726,2]
[377909926,1754613066443,-400.0,0.00019726,2]
[377909927,1754613066453,-400.0,0.00019726,2]
[377909928,1754613066463,-633.1,0.00019726,2]
[377909929,1754613066473,-408.97,0.00019726,2]
[377909930,1754613066482,-400.0,0.00019726,2]
[377909931,1754613066492,-400.0,0.00019726,2]
[377909932,1754613066502,-803.71,0.00019726,2]
[377909933,1754613066512,-400.0,0.00019726,2]
[377909934,1754613066521,-1211.14,0.00019726,2]
[377909935,1754613066531,-832.28,0.00019726,2]
[377909936,1754613066541,-400.0,0.00019726,2]
[377909937,1754613066551,-400.0,0.00019726,2]
[377909938,1754613066561,-400.0,0.00019726,2]
[377909939,1754613066571,-400.0,0.00019726,2]
[377909940,1754613066586,-400.0,0.00019726,2]
[377909941,1754613066595,-634.61,0.00019726,2]
[377909942,1754613066606,-400.0,0.00019726,2]
[377909943,1754613066616,-1042.43,0.00019726,2]
[377909944,1754613066626,-411.96,0.00019726,2]
[377909945,1754613066636,-455.66,0.00019726,2]
[377909946,1754613066646,-258.18210109,0.00019726,2]
[377909947,1754613066657,-9366.87,0.00019726,2]
[377909948,1754613066667,-707.32,0.00019726,2]
[377909949,1754613066677,-400.0,0.00019726,2]
[377909950,1754613066687,-1513.02,0.00019726,2]
[377909951,1754613066698,-854.23,0.00019726,2]
[377909952,1754613066708,-400.0,0.00019726,2]
[377909953,1754613066718,-801.68,0.00019726,2]
[377909954,1754613066728,-484.41,0.00019726,2]
[377909955,1754613066738,-447.08,0.00019726,2]
[377909956,1754613066748,-1103.08,0.00019726,2]
[377909957,1754613066758,-400.0,0.00019726,2]
[377909958,1754613066768,-400.0,0.00019726,2]
[377909959,1754613066778,-400.0,0.00019726,2]
[377909960,1754613066788,-400.0,0.00019726,2]
[377909961,1754613066798,-1785.26,0.00019726,2]
[377909962,1754613066808,-512.05,0.00019726,2]
[377909963,1754613066818,-400.0,0.00019726,2]
[377909964,1754613066828,-1209.1,0.00019726,2]
[377909965,1754613066843,-368.75387287,0.00019726,2]
[377909966,1754613066854,-1338.39,0.00019726,2]
[377909967,1754613066864,-837.98,0.00019726,2]
[377909968,1754613066874,-400.0,0.00019726,2]
[377909969,1754613066885,-467.43,0.00019726,2]
[377909970,1754613066894,-602.9,0.00019726,2]
[377909971,1754613066905,-400.0,0.00019726,2]
[377909972,1754613066915,-588.83,0.00019726,2]
[377909973,1754613066926,-1005.96,0.00019726,2]
[377909974,1754613066936,-1973.33,0.00019726,2]
[377909975,1754613066946,-703.47,0.00019726,2]
[377909976,1754613066956,-969.26,0.00019726,2]
[377909977,1754613066966,-1304.83,0.00019726,2]
[377909978,1754613066976,-2027.86,0.00019726,2]
[377909979,1754613066986,-688.65,0.00019726,2]
[377909980,1754613066996,-1312.78,0.00019726,2]
[377909981,1754613067007,-400.0,0.00019726,2]
[377909982,1754613067018,-400.0,0.00019726,2]
[377909983,1754613067028,-2100.2,0.00019726,2]
[377909984,1754613067038,-1134.28,0.00019726,2]
[377909985,1754613067048,-1569.86,0.00019726,2]
[377909986,1754613067058,-1383.67,0.00019726,2]
[377909987,1754613067068,-400.0,0.00019726,2]
[377909988,1754613067078,-529.24,0.00019726,2]
[377909989,1754613067091,-400.0,0.00019726,2]
[377909990,1754613067101,-263.39364803,0.00019726,2]
[377909991,1754613067111,-812.54,0.00019726,2]
[377909992,1754613067121,-871.51,0.00019726,2]
[377909993,1754613067131,-603.98,0.00019726,2]
[377909994,1754613067140,-755.43,0.00019726,2]
[377909995,1754613067150,-1094.56,0.00019726,2]
[377909996,1754613067160,-801.5,0.00019726,2]
[377909997,1754613067170,-400.0,0.00019726,2]
[377909998,1754613067181,-400.0,0.00019726,2]
[377909999,1754613067191,-400.0,0.00019726,2]
[377910000,1754613067200,-400.0,0.00019726,2]
[377910001,1754613067210,-1864.15,0.00019726,2]
[377910002,1754613067220,-400.0,0.00019726,2]
[377910003,1754613067230,-1856.19,0.00019726,2]
[377910004,1754613067240,-400.0,0.00019726,2]
[377910005,1754613067250,-744.46,0.00019726,2]
[377910006,1754613067259,-400.0,0.00019726,2]
[377910007,1754613067270,-456.92101184,0.00019726,2]
[377910008,1754613067280,-574.05,0.00019726,2]
[377910009,1754613067289,-400.0,0.00019726,2]
[377910010,1754613067299,-400.0,0.00019726,2]
[377910011,1754613067309,-400.0,0.00019726,2]
[377910012,1754613067319,-2819.61,0.00019726,2]
[377910013,1754613067332,-963.74,0.00019726,2]
[377910014,1754613067342,-641.78,0.00019726,2]
[377910015,1754613067352,-400.0,0.00019726,2]
[377910016,1754613067362,-1130.98,0.00019726,2]
[377910017,1754613067371,-400.0,0.00019726,2]
[377910018,1754613067381,-421.69,0.00019726,2]
[377910019,1754613067391,-711.52,0.00019726,2]
[377910020,1754613067401,-400.0,0.00019726,2]
[377910021,1754613067410,-1482.22,0.00019726,2]
[377910022,1754613067420,-1692.64,0.00019726,2]
[377910023,1754613067430,-400.0,0.00019726,2]
[377910024,1754613067440,-9960.13,0.00019726,2]
[377910025,1754613067450,-400.0,0.00019726,2]
[377910026,1754613067460,-561.73,0.00019726,2]
[377910027,1754613067469,-400.0,0.00019726,2]
[377910028,1754613067479,-2507.14,0.00019726,2]
[377910029,1754613067489,-606.66,0.00019726,2]
[377910030,1754613067498,-500.34,0.00019726,2]
[377910031,1754613067508,-1592.3,0.00019726,2]
[377910032,1754613067518,-400.0,0.00019726,2]
[377910033,1754613067528,-400.0,0.00019726,2]
[377910034,1754613067538,-1471.57,0.00019726,2]
[377910035,1754613067547,-546.64,0.00019726,2]
[377910036,1754613067557,-400.0,0.00019726,2]
[377910037,1754613067567,-400.0,0.00019726,2]
[377910038,1754613067576,-1316.78,0.00019726,2]
[377910039,1754613067591,-400.0,0.00019726,2]
[377910040,1754613067601,-400.0,0.00019726,2]
[377910041,1754613067611,-567.89,0.00019726,2]
[377910042,1754613067620,-1758.45,0.00019726,2]
[377910043,1754613067631,-400.0,0.00019726,2]
[377910044,1754613067641,-400.0,0.00019726,2]
[377910045,1754613067651,-1555.78,0.00019726,2]
[377910046,1754613067661,-1144.53,0.00019726,2]
[377910047,1754613067671,-1949.39,0.00019726,2]
[377910048,1754613067682,-973.9,0.00019726,2]
[377910049,1754613067693,-1450.07,0.00019726,2]
[377910050,1754613067704,-416.35,0.00019726,2]
[377910051,1754613067715,-2230.25,0.00019726,2]
[377910052,1754613067725,-400.0,0.00019726,2]
[377910053,1754613067735,-1658.19,0.00019726,2]
[377910054,1754613067745,-1577.14,0.00019726,2]
[377910055,1754613067755,-2189.36,0.00019726,2]
[377910056,1754613067765,-400.0,0.00019726,2]
[377910057,1754613067775,-400.0,0.00019726,2]
[377910058,1754613067785,-1736.77,0.00019726,2]
[377910059,1754613067795,-400.0,0.00019726,2]
[377910060,1754613067805,-544.97,0.00019726,2]
[377910061,1754613067814,-1668.74,0.00019726,2]
[377910062,1754613067825,-400.0,0.00019726,2]
[377910063,1754613067841,-527.26,0.00019726,2]
[377910064,1754613067850,-400.0,0.00019726,2]
[377910065,1754613067860,-723.41,0.00019726,2]
[377910066,1754613067870,-1506.04,0.00019726,2]
[377910067,1754613067880,-400.0,0.00019726,2]
[377910068,1754613067891,-2004.13,0.00019726,2]
[377910069,1754613067901,-1196.36,0.00019726,2]
[377910070,1754613067914,-1222.43,0.00019726,2]
[377910071,1754613067924,-444.47,0.00019726,2]
[377910072,1754613067934,-1393.06,0.00019726,2]
[377910073,1754613067944,-554.57,0.00019726,2]
[377910074,1754613067954,-2031.25,0.00019726,2]
[377910075,1754613067966,-624.86,0.00019726,2]
[377910076,1754613067978,-1109.06,0.00019726,2]
[377910077,1754613067992,-1290.07,0.00019726,2]
[377910078,1754613068002,-1460.91,0.00019726,2]
[377910079,1754613068012,-2592.74,0.00019726,2]
[377910080,1754613068022,-2666.29,0.00019726,2]
[377910081,1754613068032,-469.16,0.00019726,2]
[377910082,1754613068042,-2043.58,0.00019726,2]
[377910083,1754613068051,-1164.41,0.00019726,2]
[377910084,1754613068062,-1333.93,0.00019726,2]
[377910085,1754613068072,-400.0,0.00019726,2]
[377910086,1754613068084,-694.8,0.00019726,2]
[377910087,1754613068094,-400.0,0.00019726,2]
[377910088,1754613068104,-518.35,0.00019726,2]
[377910089,1754613068113,-750.53,0.00019726,2]
[377910090,1754613068123,-400.0,0.00019726,2]
[377910091,1754613068132,-631.92,0.00019726,2]
[377910092,1754613068142,-1164.69,0.00019726,2]
[377910093,1754613068152,-680.98,0.00019726,2]
[377910094,1754613068162,-2811.47,0.00019726,2]
[377910095,1754613068172,-465.25,0.00019726,2]
[377910096,1754613068181,-543.99,0.00019726,2]
[377910097,1754613068191,-1133.55,0.00019726,2]
[377910098,1754613068200,-400.0,0.00019726,2]
[377910099,1754613068210,-1818.01,0.00019726,2]
[377910100,1754613068219,-400.0,0.00019726,2]
[377910101,1754613068229,-1383.67,0.00019726,2]
[377910102,1754613068239,-400.0,0.00019726,2]
[377910103,1754613068248,-4407.12,0.00019726,2]
[377910104,1754613068258,-1714.38,0.00019726,2]
[377910105,1754613068267,-1288.12,0.00019726,2]
[377910106,1754613068277,-1275.65,0.00019726,2]
[377910107,1754613068287,-1117.23,0.00019726,2]
[377910108,1754613068296,-961.95,0.00019726,2]
[377910109,1754613068306,-1105.6,0.00019726,2]
[377910110,1754613068316,-879.97,0.00019726,2]
[377910111,1754613068326,-400.0,0.00019726,2]
[377910112,1754613068340,-453.21,0.00019726,2]
[377910113,1754613068350,-400.0,0.00019726,2]
[377910114,1754613068360,-633.58,0.00019726,2]
[377910115,1754613068370,-1989.79,0.00019726,2]
[377910116,1754613068380,-400.0,0.00019726,2]
[377910117,1754613068390,-1604.94,0.00019726,2]
[377910118,1754613068400,-426.59,0.00019726,2]
[377910119,1754613068410,-1061.62,0.00019726,2]
[377910120,1754613068420,-446.1,0.00019726,2]
[377910121,1754613068430,-400.0,0.00019726,2]
[377910122,1754613068441,-400.0,0.00019726,2]
[377910123,1754613068451,-2286.48,0.00019726,2]
[377910124,1754613068462,-1419.58,0.00019726,2]
[377910125,1754613068472,-608.07,0.00019726,2]
[377910126,1754613068482,-1349.34,0.00019726,2]
[377910127,1754613068492,-400.0,0.00019726,2]
[377910128,1754613068503,-400.0,0.00019726,2]
[377910129,1754613068513,-1214.9,0.00019726,2]
[377910130,1754613068524,-994.63,0.00019726,2]
[377910131,1754613068535,-2503.56,0.00019726,2]
[377910132,1754613068545,-400.0,0.00019726,2]
[377910133,1754613068557,-2034.76,0.00019726,2]
[377910134,1754613068568,-668.68,0.00019726,2]
[377910135,1754613068579,-578.7,0.00019726,2]
[377910136,1754613068590,-1646.26,0.00019726,2]
[377910137,1754613068602,-400.0,0.00019726,2]
[377910138,1754613068612,-1276.94,0.00019726,2]
[377910139,1754613068622,-1528.92,0.00019726,2]
[377910140,1754613068632,-400.0,0.00019726,2]
[377910141,1754613068642,-400.0,0.00019726,2]
[377910142,1754613068652,-1889.62,0.00019726,2]
[377910143,1754613068662,-1025.64,0.00019726,2]
[377910144,1754613068671,-2128.65,0.00019726,2]
[377910145,1754613068681,-1501.0,0.00019726,2]
[377910146,1754613068691,-1492.79,0.00019726,2]
[377910147,1754613068702,-547.41,0.00019726,2]
[377910148,1754613068711,-1086.24,0.00019726,2]
[377910149,1754613068721,-400.0,0.00019726,2]
[377910150,1754613068731,-400.0,0.00019726,2]
[377910151,1754613068740,-607.0,0.00019726,2]
[377910152,1754613068751,-420.32,0.00019726,2]
[377910153,1754613068761,-1345.75,0.00019726,2]
[377910154,1754613068771,-504.96849001,0.00019726,2]
[377910155,1754613068782,-489.48,0.00019726,2]
[377910156,1754613068792,-1120.37,0.00019726,2]
[377910157,1754613068802,-1434.86,0.00019726,2]
[377910158,1754613068813,-400.0,0.00019726,2]
[377910159,1754613068823,-400.0,0.00019726,2]
[377910160,1754613068838,-1951.53,0.00019726,2]
[377910161,1754613068849,-917.26,0.00019726,2]
[377910162,1754613068947,-2325.69,0.00019726,2]
[377910163,1754613068958,-1376.02,0.00019726,2]
[377910164,1754613068968,-451.49,0.00019726,2]
[377910165,1754613068978,-1065.9,0.00019726,2]
[377910166,1754613068988,-400.0,0.00019726,2]
[377910167,1754613068998,-1350.78,0.00019726,2]
[377910168,1754613069008,-400.0,0.00019726,2]
[377910169,1754613069018,-1151.09,0.00019726,2]
[377910170,1754613069028,-400.0,0.00019726,2]
[377910171,1754613069038,-400.0,0.00019726,2]
[377910172,1754613069047,-1848.96,0.00019726,2]
[377910173,1754613069057,-1657.63,0.00019726,2]
[377910174,1754613069067,-1826.78,0.00019726,2]
[377910175,1754613069077,-400.0,0.00019726,2]
[377910176,1754613069089,-1409.09,0.00019726,2]
[377910177,1754613069099,-400.0,0.00019726,2]
[377910178,1754613069110,-400.0,0.00019726,2]
[377910179,1754613069120,-400.0,0.00019726,2]
[377910180,1754613069130,-400.0,0.00019726,2]
[377910181,1754613069140,-400.0,0.00019726,2]
[377910182,1754613069150,-2222.15,0.00019726,2]
[377910183,1754613069159,-280.0,0.00019726,2]
[377910184,1754613069169,-1400.02,0.00019726,2]
[377910185,1754613069179,-608.66,0.00019726,2]
[377910186,1754613069188,-2074.91,0.00019726,2]
[377910187,1754613069198,-1588.59,0.00019726,2]
[377910188,1754613069208,-400.0,0.00019726,2]
[377910189,1754613069218,-1481.84,0.00019726,2]
[377910190,1754613069228,-1119.1,0.00019726,2]
[377910191,1754613069238,-1688.74,0.00019726,2]
[377910192,1754613069248,-880.06,0.00019726,2]
[377910193,1754613069258,-1888.11,0.00019726,2]
[377910194,1754613069267,-1345.58,0.00019726,2]
[377910195,1754613069277,-2547.87,0.00019726,2]
[377910196,1754613069287,-400.0,0.00019726,2]
[377910197,1754613069297,-1803.23,0.00019726,2]
[377910198,1754613069306,-3553.23,0.00019726,2]
[377910199,1754613069316,-3068.61,0.00019726,2]
[377910200,1754613069325,-846.92,0.00019726,2]
[377910201,1754613069337,-400.0,0.00019726,2]
[377910202,1754613069346,-1857.98,0.00019726,2]
[377910203,1754613069356,-1278.15,0.00019726,2]
[377910204,1754613069365,-400.0,0.00019726,2]
[377910205,1754613069375,-2016.9,0.00019726,2]
[377910206,1754613069384,-2027.95,0.00019726,2]
[377910207,1754613069394,-2106.04,0.00019726,2]
[377910208,1754613069403,-1934.76,0.00019726,2]
[377910209,1754613069413,-1218.73,0.00019726,2]
[377910210,1754613069423,-881.02,0.00019726,2]
[377910211,1754613069433,-633.24,0.00019726,2]
[377910212,1754613069442,-400.0,0.00019726,2]
[377910213,1754613069453,-1410.86,0.00019726,2]
[377910214,1754613069463,-1461.11,0.00019726,2]
[377910215,1754613069472,-400.0,0.00019726,2]
[377910216,1754613069482,-2341.65,0.00019726,2]
[377910217,1754613069492,-400.0,0.00019726,2]
[377910218,1754613069501,-1720.55,0.00019726,2]
[377910219,1754613069511,-1452.03,0.00019726,2]
[377910220,1754613069520,-1620.97,0.00019726,2]
[377910221,1754613069530,-496.68,0.00019726,2]
[377910222,1754613069539,-1617.17,0.00019726,2]
[377910223,1754613069549,-2144.18,0.00019726,2]
[377910224,1754613069559,-2107.78,0.00019726,2]
[377910225,1754613069569,-400.0,0.00019726,2]
[377910226,1754613069579,-400.0,0.00019726,2]
[377910227,1754613069593,-400.0,0.00019726,2]
[377910228,1754613069603,-749.36,0.00019726,2]
[377910229,1754613069612,-400.0,0.00019726,2]
[377910230,1754613069622,-634.15,0.00019726,2]
[377910231,1754613069631,-400.0,0.00019726,2]
[377910232,1754613069641,-558.88,0.00019726,2]
[377910233,1754613069650,-400.0,0.00019726,2]
[377910234,1754613069660,-2615.62,0.00019726,2]
[377910235,1754613069670,-1657.01,0.00019726,2]
[377910236,1754613069680,-1646.42,0.00019726,2]
[377910237,1754613069690,-2136.59,0.00019726,2]
[377910238,1754613069699,-2388.63,0.00019726,2]
[377910239,1754613069709,-400.0,0.00019726,2]
[377910240,1754613069724,-1193.46,0.00019726,2]
[377910241,1754613069734,-1288.88,0.00019726,2]
[377910242,1754613069744,-2350.74,0.00019726,2]
[377910243,1754613069754,-2311.16,0.00019726,2]
[377910244,1754613069764,-400.0,0.00019726,2]
[377910245,1754613069774,-1810.11,0.00019726,2]
[377910246,1754613069783,-1822.62,0.00019726,2]
[377910247,1754613069795,-400.0,0.00019726,2]
[377910248,1754613069806,-612.27,0.00019726,2]
[377910249,1754613069816,-1537.46,0.00019726,2]
[377910250,1754613069826,-1369.16,0.00019726,2]
[377910251,1754613069839,-511.54,0.00019726,2]
[377910252,1754613069850,-482.95,0.00019726,2]
[377910253,1754613069859,-1594.51,0.00019726,2]
[377910254,1754613069869,-1678.28,0.00019726,2]
[377910255,1754613069879,-1248.2,0.00019726,2]
[377910256,1754613069889,-5670.63,0.00019726,2]
[377910257,1754613069899,-845.84,0.00019726,2]
[377910258,1754613069910,-400.0,0.00019726,2]
[377910259,1754613069921,-483.64,0.00019726,2]
[377910260,1754613069932,-1205.01,0.00019726,2]
[377910261,1754613069943,-893.25,0.00019726,2]
[377910262,1754613069952,-663.05,0.00019726,2]
[377910263,1754613069962,-1256.8,0.00019726,2]
[377910264,1754613069972,-2578.27,0.00019726,2]
[377910265,1754613069982,-1440.32,0.00019726,2]
[377910266,1754613069992,-2047.45,0.00019726,2]
[377910267,1754613070001,-1244.17,0.00019726,2]
[377910268,1754613070012,-738.95,0.00019726,2]
[377910269,1754613070021,-575.03,0.00019726,2]
[377910270,1754613070031,-500.07,0.00019726,2]
[377910271,1754613070041,-2097.6,0.00019726,2]
[377910272,1754613070051,-400.0,0.00019726,2]
[377910273,1754613070061,-422.96,0.00019726,2]
[377910274,1754613070071,-759.15,0.00019726,2]
[377910275,1754613070082,-1321.01,0.00019726,2]
[377910276,1754613070092,-400.0,0.00019726,2]
[377910277,1754613070102,-1757.73,0.00019726,2]
[377910278,1754613070111,-400.0,0.00019726,2]
[377910279,1754613070121,-1208.59,0.00019726,2]
[377910280,1754613070131,-400.0,0.00019726,2]
[377910281,1754613070141,-1316.97,0.00019726,2]
[377910282,1754613070150,-454.26,0.00019726,2]
[377910283,1754613070159,-3377.08,0.00019726,2]
[377910284,1754613070170,-400.0,0.00019726,2]
[377910285,1754613070179,-400.0,0.00019726,2]
[377910286,1754613070188,-1206.78,0.00019726,2]
[377910287,1754613070198,-671.01,0.00019726,2]
[377910288,1754613070208,-1895.55,0.00019726,2]
[377910289,1754613070219,-1065.6,0.00019726,2]
[377910290,1754613070230,-2465.13,0.00019726,2]
[377910291,1754613070241,-1712.73,0.00019726,2]
[377910292,1754613070250,-930.4,0.00019726,2]
[377910293,1754613070260,-400.0,0.00019726,2]
[377910294,1754613070269,-2359.49,0.00019726,2]
[377910295,1754613070278,-400.0,0.00019726,2]
[377910296,1754613070288,-916.62,0.00019726,2]
[377910297,1754613070298,-1926.69,0.00019726,2]
[377910298,1754613070307,-400.0,0.00019726,2]
[377910299,1754613070317,-400.0,0.00019726,2]
[377910300,1754613070326,-831.18,0.00019726,2]
[377910301,1754613070338,-458.34,0.00019726,2]
[377910302,1754613070347,-1982.51,0.00019726,2]
[377910303,1754613070357,-2026.14,0.00019726,2]
[377910304,1754613070367,-1138.89,0.00019726,2]
[377910305,1754613070376,-202.68048156,0.00019726,2]
[377910306,1754613070386,-785.6,0.00019726,2]
[377910307,1754613070395,-1225.08,0.00019726,2]
[377910308,1754613070405,-1259.99,0.00019726,2]
[377910309,1754613070414,-1835.44,0.00019726,2]
[377910310,1754613070424,-400.0,0.00019726,2]
[377910311,1754613070433,-821.3,0.00019726,2]
[377910312,1754613070443,-1444.0,0.00019726,2]
[377910313,1754613070452,-1205.32,0.00019726,2]
[377910314,1754613070462,-1785.88,0.00019726,2]
[377910315,1754613070486,-2627.0,0.00019726,2]
[377910316,1754613070495,-517.59,0.00019726,2]
[377910317,1754613070505,-400.0,0.00019726,2]
[377910318,1754613070515,-782.04,0.00019726,2]
[377910319,1754613070524,-737.52,0.00019726,2]
[377910320,1754613070534,-720.69,0.00019726,2]
[377910321,1754613070544,-400.0,0.00019726,2]
[377910322,1754613070554,-400.0,0.00019726,2]
[377910323,1754613070563,-1057.29,0.00019726,2]
[377910324,1754613070573,-594.32,0.00019726,2]
[377910325,1754613070585,-2043.3,0.00019726,2]
[377910326,1754613070596,-400.0,0.00019726,2]
[377910327,1754613070606,-760.17,0.00019726,2]
[377910328,1754613070616,-1256.19,0.00019726,2]
[377910329,1754613070626,-1429.55,0.00019726,2]
[377910330,1754613070635,-1213.52,0.00019726,2]
[377910331,1754613070645,-400.0,0.00019726,2]
[377910332,1754613070655,-400.0,0.00019726,2]
[377910333,1754613070665,-400.0,0.00019726,2]
[377910334,1754613070675,-1326.52,0.00019726,2]
[377910335,1754613070687,-400.0,0.00019726,2]
[377910336,1754613070698,-400.0,0.00019726,2]
[377910337,1754613070707,-718.93,0.00019726,2]
[377910338,1754613070717,-1573.48,0.00019726,2]
[377910339,1754613070727,-400.0,0.00019726,2]
[377910340,1754613070736,-2287.32,0.00019726,2]
[377910341,1754613070746,-1998.91,0.00019726,2]
[377910342,1754613070756,-1328.2,0.00019726,2]
[377910343,1754613070766,-400.0,0.00019726,2]
[377910344,1754613070776,-1087.69,0.00019726,2]
[377910345,1754613070785,-400.0,0.00019726,2]
[377910346,1754613070795,-1129.91,0.00019726,2]
[377910347,1754613070805,-2952.54,0.00019726,2]
[377910348,1754613070815,-1291.71,0.00019726,2]
[377910349,1754613070826,-507.81,0.00019726,2]
[377910350,1754613070842,-2109.97,0.00019726,2]
[377910351,1754613070852,-780.96,0.00019726,2]
[377910352,1754613070862,-1425.93,0.00019726,2]
[377910353,1754613070872,-400.0,0.00019726,2]
[377910354,1754613070883,-921.79,0.00019726,2]
[377910355,1754613070893,-400.0,0.00019726,2]
[377910356,1754613070903,-1165.14,0.00019726,2]
[377910357,1754613070913,-662.71,0.00019726,2]
[377910358,1754613070925,-1164.62,0.00019726,2]
[377910359,1754613070935,-2405.69,0.00019726,2]
[377910360,1754613070945,-620.84,0.00019726,2]
[377910361,1754613070955,-918.26,0.00019726,2]
[377910362,1754613070965,-876.19,0.00019726,2]
[377910363,1754613070974,-1258.15,0.00019726,2]
[377910364,1754613070984,-400.0,0.00019726,2]
[377910365,1754613070995,-2947.95,0.00019726,2]
[377910366,1754613071004,-1553.23,0.00019726,2]
[377910367,1754613071015,-307.5434074,0.00019726,2]
[377910368,1754613071024,-478.79,0.00019726,2]
[377910369,1754613071034,-1217.16,0.00019726,2]
[377910370,1754613071044,-2199.42,0.00019726,2]
[377910371,1754613071054,-2212.98,0.00019726,2]
[377910372,1754613071063,-599.75,0.00019726,2]
[377910373,1754613071073,-21934.36,0.00019726,2]
[377910374,1754613071086,-285.6462091,0.00019726,2]
[377910375,1754613071097,-1128.21,0.00019726,2]
[377910376,1754613071107,-2805.22,0.00019726,2]
[377910377,1754613071118,-400.0,0.00019726,2]
[377910378,1754613071129,-177.74053747,0.00019726,2]
[377910379,1754613071139,-400.0,0.00019726,2]
[377910380,1754613071149,-1718.94,0.00019726,2]
[377910381,1754613071158,-454.14,0.00019726,2]
[377910382,1754613071168,-2525.21,0.00019726,2]
[377910383,1754613071178,-913.11,0.00019726,2]
[377910384,1754613071188,-400.0,0.00019726,2]
[377910385,1754613071208,-484.16,0.00019726,2]
[377910386,1754613071224,-674.02,0.00019726,2]
[377910387,1754613071235,-1717.22,0.00019726,2]
[377910388,1754613071245,-3589.91,0.00019726,2]
[377910389,1754613071254,-1814.44,0.00019726,2]
[377910390,1754613071264,-2569.88,0.00019726,2]
[377910391,1754613071274,-445.14,0.00019726,2]
[377910392,1754613071283,-400.0,0.00019726,2]
[377910393,1754613071293,-1662.56,0.00019726,2]
[377910394,1754613071302,-1638.11,0.00019726,2]
[377910395,1754613071311,-1179.5,0.00019726,2]
[377910396,1754613071321,-1890.31,0.00019726,2]
[377910397,1754613071331,-820.59,0.00019726,2]
[377910398,1754613071342,-400.0,0.00019726,2]
[377910399,1754613071352,-674.63,0.00019726,2]
[377910400,1754613071361,-600.51,0.00019726,2]
[377910401,1754613071371,-400.0,0.00019726,2]
[377910402,1754613071380,-2338.84,0.00019726,2]
[377910403,1754613071391,-400.0,0.00019726,2]
[377910404,1754613071401,-157.12248184,0.00019726,2]
[377910405,1754613071410,-400.0,0.00019726,2]
[377910406,1754613071420,-1234.92,0.00019726,2]
[377910407,1754613071429,-400.0,0.00019726,2]
[377910408,1754613071438,-5688.95,0.00019726,2]
[377910409,1754613071448,-2335.94,0.00019726,2]
[377910410,1754613071457,-400.0,0.00019726,2]
[377910411,1754613071466,-400.0,0.00019726,2]
[377910412,1754613071475,-862.72,0.00019726,2]